{"text_format":"3","workbook":"xlsx","n_sheets":1,"sheets":["Rozpočet výdajů"],"not_rendered":{"charts":2,"defined_names":3},"read":"whole","date_system":"1900"}

{"sheet":"Rozpočet výdajů","index":0,"n_rows":47,"n_cols":7,"rows_kept":47,"merged":[[0,1,0,4],[0,5,0,6],[16,1,16,6],[48,1,48,6]]}
[null,"Rozpočet výdajů",{"$nulls":3},"CONTOSO, 2013"]
[]
[]
[null," ROZPOČET NA PRACOVNÍKY"]
{"$rows_empty":7}
[null,"STAV","PRACOVNÍCI","ROZPOČET","SKUTEČNÝ","ROZDÍL (Kč)","ROZDÍL (%)"]
[null,{"$f":"IFERROR('Rozpočet výdajů'!$E13/'Rozpočet výdajů'!$D13,\"\")","v":{"v":1.13,"d":"$1.13"}},"Kancelář",{"v":500,"d":"500.00 Kč"},{"v":565,"d":"565.00 Kč"},{"$f":"'Rozpočet výdajů'!$D13-'Rozpočet výdajů'!$E13","v":{"v":-65,"d":"-65.00 Kč"}},{"$f":"IFERROR('Rozpočet výdajů'!$F$13:$F$16/'Rozpočet výdajů'!$D$13:$D$16,\"\")","v":{"v":-0.13,"d":"-13%"}}]
[null,{"$f":"IFERROR('Rozpočet výdajů'!$E14/'Rozpočet výdajů'!$D14,\"\")","v":{"v":1.2,"d":"$1.20"}},"Obchod",{"v":125,"d":"125.00 Kč"},{"v":150,"d":"150.00 Kč"},{"$f":"'Rozpočet výdajů'!$D14-'Rozpočet výdajů'!$E14","v":{"v":-25,"d":"-25.00 Kč"}},{"$f":"IFERROR('Rozpočet výdajů'!$F$13:$F$16/'Rozpočet výdajů'!$D$13:$D$16,\"\")","v":{"v":-0.2,"d":"-20%"}}]
[null,{"$f":"IFERROR('Rozpočet výdajů'!$E15/'Rozpočet výdajů'!$D15,\"\")","v":{"v":1,"d":"$1.00"}},"Prodavači",{"v":100,"d":"100.00 Kč"},{"v":100,"d":"100.00 Kč"},{"$f":"'Rozpočet výdajů'!$D15-'Rozpočet výdajů'!$E15","v":{"v":0,"d":"0.00 Kč"}},{"$f":"IFERROR('Rozpočet výdajů'!$F$13:$F$16/'Rozpočet výdajů'!$D$13:$D$16,\"\")","v":{"v":0,"d":"0%"}}]
[null,{"$f":"IFERROR('Rozpočet výdajů'!$E16/'Rozpočet výdajů'!$D16,\"\")","v":{"v":0.9,"d":"$0.90"}},"Jiné",{"v":100,"d":"100.00 Kč"},{"v":90,"d":"90.00 Kč"},{"$f":"'Rozpočet výdajů'!$D16-'Rozpočet výdajů'!$E16","v":{"v":10,"d":"10.00 Kč"}},{"$f":"IFERROR('Rozpočet výdajů'!$F$13:$F$16/'Rozpočet výdajů'!$D$13:$D$16,\"\")","v":{"v":0.1,"d":"10%"}}]
[]
[]
[null,"PROVOZNÍ ROZPOČET"]
{"$rows_empty":7}
[null,"STAV","PROVOZNÍ","ROZPOČET","SKUTEČNÝ","ROZDÍL (Kč)","ROZDÍL (%)"]
[null,{"$f":"IFERROR(tblProvozníVýdaje[[#This Row],[SKUTEČNÝ]]/tblProvozníVýdaje[[#This Row],[ROZPOČET]],\"\")","v":{"v":0.98,"d":"$0.98"}},"Reklama",{"v":250,"d":"250.00 Kč"},{"v":245,"d":"245.00 Kč"},{"$f":"tblProvozníVýdaje[[#This Row],[ROZPOČET]]-tblProvozníVýdaje[[#This Row],[SKUTEČNÝ]]","v":{"v":5,"d":"5.00 Kč"}},{"$f":"IFERROR(tblProvozníVýdaje[[#This Row],[ROZDÍL (Kč)]]/tblProvozníVýdaje[[#This Row],[ROZPOČET]],\"\")","v":{"v":0.02,"d":"2%"}}]
[null,{"$f":"IFERROR(tblProvozníVýdaje[[#This Row],[SKUTEČNÝ]]/tblProvozníVýdaje[[#This Row],[ROZPOČET]],\"\")","v":{"v":1.2,"d":"$1.20"}},"Pohledávky",{"v":125,"d":"125.00 Kč"},{"v":150,"d":"150.00 Kč"},{"$f":"tblProvozníVýdaje[[#This Row],[ROZPOČET]]-tblProvozníVýdaje[[#This Row],[SKUTEČNÝ]]","v":{"v":-25,"d":"-25.00 Kč"}},{"$f":"IFERROR(tblProvozníVýdaje[[#This Row],[ROZDÍL (Kč)]]/tblProvozníVýdaje[[#This Row],[ROZPOČET]],\"\")","v":{"v":-0.2,"d":"-20%"}}]
[null,{"$f":"IFERROR(tblProvozníVýdaje[[#This Row],[SKUTEČNÝ]]/tblProvozníVýdaje[[#This Row],[ROZPOČET]],\"\")","v":{"v":1,"d":"$1.00"}},"Výhody",{"v":100,"d":"100.00 Kč"},{"v":100,"d":"100.00 Kč"},{"$f":"tblProvozníVýdaje[[#This Row],[ROZPOČET]]-tblProvozníVýdaje[[#This Row],[SKUTEČNÝ]]","v":{"v":0,"d":"0.00 Kč"}},{"$f":"IFERROR(tblProvozníVýdaje[[#This Row],[ROZDÍL (Kč)]]/tblProvozníVýdaje[[#This Row],[ROZPOČET]],\"\")","v":{"v":0,"d":"0%"}}]
[null,{"$f":"IFERROR(tblProvozníVýdaje[[#This Row],[SKUTEČNÝ]]/tblProvozníVýdaje[[#This Row],[ROZPOČET]],\"\")","v":{"v":0.9,"d":"$0.90"}},"Zásoby",{"v":100,"d":"100.00 Kč"},{"v":90,"d":"90.00 Kč"},{"$f":"tblProvozníVýdaje[[#This Row],[ROZPOČET]]-tblProvozníVýdaje[[#This Row],[SKUTEČNÝ]]","v":{"v":10,"d":"10.00 Kč"}},{"$f":"IFERROR(tblProvozníVýdaje[[#This Row],[ROZDÍL (Kč)]]/tblProvozníVýdaje[[#This Row],[ROZPOČET]],\"\")","v":{"v":0.1,"d":"10%"}}]
[null,{"$f":"IFERROR(tblProvozníVýdaje[[#This Row],[SKUTEČNÝ]]/tblProvozníVýdaje[[#This Row],[ROZPOČET]],\"\")","v":""},"Poštovné",null,null,{"$f":"tblProvozníVýdaje[[#This Row],[ROZPOČET]]-tblProvozníVýdaje[[#This Row],[SKUTEČNÝ]]","v":{"v":0,"d":"0.00 Kč"}},{"$f":"IFERROR(tblProvozníVýdaje[[#This Row],[ROZDÍL (Kč)]]/tblProvozníVýdaje[[#This Row],[ROZPOČET]],\"\")","v":""}]
[null,{"$f":"IFERROR(tblProvozníVýdaje[[#This Row],[SKUTEČNÝ]]/tblProvozníVýdaje[[#This Row],[ROZPOČET]],\"\")","v":""},"Nájem nebo hypotéka",null,null,{"$f":"tblProvozníVýdaje[[#This Row],[ROZPOČET]]-tblProvozníVýdaje[[#This Row],[SKUTEČNÝ]]","v":{"v":0,"d":"0.00 Kč"}},{"$f":"IFERROR(tblProvozníVýdaje[[#This Row],[ROZDÍL (Kč)]]/tblProvozníVýdaje[[#This Row],[ROZPOČET]],\"\")","v":""}]
[null,{"$f":"IFERROR(tblProvozníVýdaje[[#This Row],[SKUTEČNÝ]]/tblProvozníVýdaje[[#This Row],[ROZPOČET]],\"\")","v":""},"Prodejní výdaje",null,null,{"$f":"tblProvozníVýdaje[[#This Row],[ROZPOČET]]-tblProvozníVýdaje[[#This Row],[SKUTEČNÝ]]","v":{"v":0,"d":"0.00 Kč"}},{"$f":"IFERROR(tblProvozníVýdaje[[#This Row],[ROZDÍL (Kč)]]/tblProvozníVýdaje[[#This Row],[ROZPOČET]],\"\")","v":""}]
[null,{"$f":"IFERROR(tblProvozníVýdaje[[#This Row],[SKUTEČNÝ]]/tblProvozníVýdaje[[#This Row],[ROZPOČET]],\"\")","v":""},"Daně",null,null,{"$f":"tblProvozníVýdaje[[#This Row],[ROZPOČET]]-tblProvozníVýdaje[[#This Row],[SKUTEČNÝ]]","v":{"v":0,"d":"0.00 Kč"}},{"$f":"IFERROR(tblProvozníVýdaje[[#This Row],[ROZDÍL (Kč)]]/tblProvozníVýdaje[[#This Row],[ROZPOČET]],\"\")","v":""}]
[null,{"$f":"IFERROR(tblProvozníVýdaje[[#This Row],[SKUTEČNÝ]]/tblProvozníVýdaje[[#This Row],[ROZPOČET]],\"\")","v":""},"Služby",null,null,{"$f":"tblProvozníVýdaje[[#This Row],[ROZPOČET]]-tblProvozníVýdaje[[#This Row],[SKUTEČNÝ]]","v":{"v":0,"d":"0.00 Kč"}},{"$f":"IFERROR(tblProvozníVýdaje[[#This Row],[ROZDÍL (Kč)]]/tblProvozníVýdaje[[#This Row],[ROZPOČET]],\"\")","v":""}]
[null,{"$f":"IFERROR(tblProvozníVýdaje[[#This Row],[SKUTEČNÝ]]/tblProvozníVýdaje[[#This Row],[ROZPOČET]],\"\")","v":""},"Jiné",null,null,{"$f":"tblProvozníVýdaje[[#This Row],[ROZPOČET]]-tblProvozníVýdaje[[#This Row],[SKUTEČNÝ]]","v":{"v":0,"d":"0.00 Kč"}},{"$f":"IFERROR(tblProvozníVýdaje[[#This Row],[ROZDÍL (Kč)]]/tblProvozníVýdaje[[#This Row],[ROZPOČET]],\"\")","v":""}]
[null,{"$f":"IFERROR(tblProvozníVýdaje[[#This Row],[SKUTEČNÝ]]/tblProvozníVýdaje[[#This Row],[ROZPOČET]],\"\")","v":""},"Pojištění",null,null,{"$f":"tblProvozníVýdaje[[#This Row],[ROZPOČET]]-tblProvozníVýdaje[[#This Row],[SKUTEČNÝ]]","v":{"v":0,"d":"0.00 Kč"}},{"$f":"IFERROR(tblProvozníVýdaje[[#This Row],[ROZDÍL (Kč)]]/tblProvozníVýdaje[[#This Row],[ROZPOČET]],\"\")","v":""}]
[null,{"$f":"IFERROR(tblProvozníVýdaje[[#This Row],[SKUTEČNÝ]]/tblProvozníVýdaje[[#This Row],[ROZPOČET]],\"\")","v":""},"Úrok",null,null,{"$f":"tblProvozníVýdaje[[#This Row],[ROZPOČET]]-tblProvozníVýdaje[[#This Row],[SKUTEČNÝ]]","v":{"v":0,"d":"0.00 Kč"}},{"$f":"IFERROR(tblProvozníVýdaje[[#This Row],[ROZDÍL (Kč)]]/tblProvozníVýdaje[[#This Row],[ROZPOČET]],\"\")","v":""}]
[null,{"$f":"IFERROR(tblProvozníVýdaje[[#This Row],[SKUTEČNÝ]]/tblProvozníVýdaje[[#This Row],[ROZPOČET]],\"\")","v":""},"Telefon",null,null,{"$f":"tblProvozníVýdaje[[#This Row],[ROZPOČET]]-tblProvozníVýdaje[[#This Row],[SKUTEČNÝ]]","v":{"v":0,"d":"0.00 Kč"}},{"$f":"IFERROR(tblProvozníVýdaje[[#This Row],[ROZDÍL (Kč)]]/tblProvozníVýdaje[[#This Row],[ROZPOČET]],\"\")","v":""}]
[null,{"$f":"IFERROR(tblProvozníVýdaje[[#This Row],[SKUTEČNÝ]]/tblProvozníVýdaje[[#This Row],[ROZPOČET]],\"\")","v":""},"Údržba a opravy",null,null,{"$f":"tblProvozníVýdaje[[#This Row],[ROZPOČET]]-tblProvozníVýdaje[[#This Row],[SKUTEČNÝ]]","v":{"v":0,"d":"0.00 Kč"}},{"$f":"IFERROR(tblProvozníVýdaje[[#This Row],[ROZDÍL (Kč)]]/tblProvozníVýdaje[[#This Row],[ROZPOČET]],\"\")","v":""}]
[null,{"$f":"IFERROR(tblProvozníVýdaje[[#This Row],[SKUTEČNÝ]]/tblProvozníVýdaje[[#This Row],[ROZPOČET]],\"\")","v":""},"Právní poplatky",null,null,{"$f":"tblProvozníVýdaje[[#This Row],[ROZPOČET]]-tblProvozníVýdaje[[#This Row],[SKUTEČNÝ]]","v":{"v":0,"d":"0.00 Kč"}},{"$f":"IFERROR(tblProvozníVýdaje[[#This Row],[ROZDÍL (Kč)]]/tblProvozníVýdaje[[#This Row],[ROZPOČET]],\"\")","v":""}]
[null,{"$f":"IFERROR(tblProvozníVýdaje[[#This Row],[SKUTEČNÝ]]/tblProvozníVýdaje[[#This Row],[ROZPOČET]],\"\")","v":""},"Odpisy",null,null,{"$f":"tblProvozníVýdaje[[#This Row],[ROZPOČET]]-tblProvozníVýdaje[[#This Row],[SKUTEČNÝ]]","v":{"v":0,"d":"0.00 Kč"}},{"$f":"IFERROR(tblProvozníVýdaje[[#This Row],[ROZDÍL (Kč)]]/tblProvozníVýdaje[[#This Row],[ROZPOČET]],\"\")","v":""}]
[null,{"$f":"IFERROR(tblProvozníVýdaje[[#This Row],[SKUTEČNÝ]]/tblProvozníVýdaje[[#This Row],[ROZPOČET]],\"\")","v":""},"Doprava",null,null,{"$f":"tblProvozníVýdaje[[#This Row],[ROZPOČET]]-tblProvozníVýdaje[[#This Row],[SKUTEČNÝ]]","v":{"v":0,"d":"0.00 Kč"}},{"$f":"IFERROR(tblProvozníVýdaje[[#This Row],[ROZDÍL (Kč)]]/tblProvozníVýdaje[[#This Row],[ROZPOČET]],\"\")","v":""}]
[null,{"$f":"IFERROR(tblProvozníVýdaje[[#This Row],[SKUTEČNÝ]]/tblProvozníVýdaje[[#This Row],[ROZPOČET]],\"\")","v":""},"Skladování",null,null,{"$f":"tblProvozníVýdaje[[#This Row],[ROZPOČET]]-tblProvozníVýdaje[[#This Row],[SKUTEČNÝ]]","v":{"v":0,"d":"0.00 Kč"}},{"$f":"IFERROR(tblProvozníVýdaje[[#This Row],[ROZDÍL (Kč)]]/tblProvozníVýdaje[[#This Row],[ROZPOČET]],\"\")","v":""}]
[null,{"$f":"IFERROR(tblProvozníVýdaje[[#This Row],[SKUTEČNÝ]]/tblProvozníVýdaje[[#This Row],[ROZPOČET]],\"\")","v":""},"Jiné",null,null,{"$f":"tblProvozníVýdaje[[#This Row],[ROZPOČET]]-tblProvozníVýdaje[[#This Row],[SKUTEČNÝ]]","v":{"v":0,"d":"0.00 Kč"}},{"$f":"IFERROR(tblProvozníVýdaje[[#This Row],[ROZDÍL (Kč)]]/tblProvozníVýdaje[[#This Row],[ROZPOČET]],\"\")","v":""}]
[null,null,"Celkové výdaje",{"$f":"SUBTOTAL(109,tblProvozníVýdaje[ROZPOČET],'Rozpočet výdajů'!$D$13:$D$16)","v":{"v":1400,"d":"1,400.00 Kč"}},{"$f":"SUBTOTAL(109,tblProvozníVýdaje[SKUTEČNÝ],'Rozpočet výdajů'!$E$13:$E$16)","v":{"v":1490,"d":"1,490.00 Kč"}},{"$f":"SUBTOTAL(109,tblProvozníVýdaje[ROZDÍL (Kč)],'Rozpočet výdajů'!$F$13:$F$16)","v":{"v":-90,"d":"-90.00 Kč"}},{"$f":"IFERROR(SUM(tblProvozníVýdaje[[#Totals],[ROZDÍL (Kč)]]/tblProvozníVýdaje[[#Totals],[ROZPOČET]]),\"\")","v":{"v":-0.06428571428571428,"d":"-6%"}}]